Cogmind - Beta 9.4 @@@ ROGUE MODE // 2020.01.25 @ 12:09:16 Player: rdominick Result: Destroyed by S-10 Pest with Light Assault Rifle Performance ------------- Evolutions (0) 0 Regions Visited (2) 400 Robots Destroyed (9) 45 Value Destroyed (209) 209 Prototype IDs (0) 0 Alien Tech Used (0) 0 Bonus (0) 0 TOTAL SCORE: 654 Bonus ------- None Cogmind --------- Core Integrity 0/250 Matter 300/300 Energy 400/400 System Corruption 0% Temperature Cool (0) Movement Core (200) Ox3 Location -10/Mines Parts ------- > --- POWER (1) -------- (None) > --- PROPULSION (2) --- Hover Unit > --- UTILITY (2) ------ Medium Storage Unit Large Battery > --- WEAPON (2) ------- (None) > --- INVENTORY (8) ---- Wheel Medium Battery (200) Medium Battery (200) Peak State ------------ > --- POWER ------------ Light Ion Engine > --- PROPULSION ------- Aluminum Leg Aluminum Leg > --- UTILITY ---------- Small Matter Pod Tractor Beam > --- WEAPON ----------- Small Laser Light Assault Rifle > --- INVENTORY -------- Wheel Wheel Light Assault Rifle [Rating: 7] Favorites ----------- Power Light Ion Engine Engine Light Ion Engine Propulsion Aluminum Leg Leg Aluminum Leg Hover Unit Hover Unit Utility Small Matter Pod Device Tractor Beam Storage Small Matter Pod Weapon Light Assault Rifle Energy Gun Small Laser Ballistic Gun Light Assault Rifle Ballistic Cannon Light Cannon Special Weapon Mining Laser Build | -11 -10 -10 ------- Run | Scr Mat Min Slots Evolved . | . . . Power . | . . . Propulsion . | . . . Utility . | . . . Weapon . | . . . Parts Attached 17 | 6 6 5 Power 2 | 1 1 . Engine 2 | 1 1 . Core . | . . . Reactor . | . . . Propulsion 5 | 2 1 2 Treads . | . . . Leg 4 | 2 1 1 Wheel . | . . . Hover 1 | . . 1 Flight . | . . . Utility 4 | 1 2 1 Device 1 | . 1 . Storage 3 | 1 1 1 Processor . | . . . Hackware . | . . . Protection . | . . . Artifact . | . . . Weapon 6 | 2 2 2 Energy Gun 1 | 1 . . Energy Cannon . | . . . Ballistic Gun 3 | 1 2 . Ballistic Cannon 1 | . . 1 Launcher . | . . . Special Weapon 1 | . . 1 Impact Weapon . | . . . Slashing Weapon . | . . . Piercing Weapon . | . . . Special Melee Weapon . | . . . Unidentified Prototypes . | . . . Parts Lost 7 | . . 7 Power 1 | . . 1 Propulsion 2 | . . 2 Utility . | . . . Weapon 4 | . . 4 Highest Loss Streak 4 | . . 4 Average Slot Usage (%) 94 | . 98 90 Engine 10 | . 14 7 Leg 24 | . 27 20 Hover 2 | . . 5 Device 6 | . 12 . Storage 20 | . 14 28 Energy Gun 5 | . 10 . Ballistic Gun 18 | . 17 19 Ballistic Cannon 3 | . . 7 Naked Turns . | . . . Heaviest Build 15 | 6 9 15 Greatest Support 20 | 20 20 20 Greatest Overweight (x) 4 | . . 4 Average Overweight (x) . | . . . Largest Inventory Capacity 8 | 4 4 8 Average Capacity 4 | 4 4 5 Most Carried 4 | 4 4 4 Average Carried 2 | 2 3 2 Final Capacity 8 | 4 4 8 Final Carried 3 | 3 1 3 Class Distribution -------------------- 100% | Mutant Dominant Class ---------------- Mutant | -10/Materials Mutant | -10/Mines Resources | -11 -10 -10 ----------- Run | Scr Mat Min Matter Collected 531 | 317 85 129 Remotely 85 | . 85 . Salvage Created 216 | 52 134 30 Parts 12 | 3 9 . Haulers Intercepted . | . . . Recyclers Shooed . | . . . Parts Field Recycled . | . . . Retrieved Matter . | . . . Parts Self-Destructed . | . . . Prevented . | . . . Kills | -11 -10 -10 ------- Run | Scr Mat Min Combat Hostiles Destroyed 7 | 1 5 1 Guns 7 | 1 5 1 Classes Destroyed 4 | 2 2 . Worker 1 | 1 . . Watcher 1 | . 1 . Swarmer 3 | . 3 . Grunt 4 | 1 2 1 Best Kill Streak 3 | 1 3 1 Combat Bots Only 3 | 1 3 1 Max Kills in Single Turn 1 | 1 1 1 Gunslinging . | . . . Exploded . | . . . Melee . | . . . Uniques/NPCs Destroyed . | . . . Combat | -11 -10 -10 -------- Run | Scr Mat Min Damage Taken 938 | 71 346 521 Core 258 | 24 164 70 Absorbed by Shields . | . . . Core Remaining (%) 90 | 90 . . Volleys Fired 64 | 7 35 22 Largest 2 | 2 2 2 Hottest 60 | 60 60 55 Shots Fired 121 | 14 67 40 Gun 108 | 14 67 27 Cannon 13 | . . 13 Launcher . | . . . Special . | . . . Kinetic 92 | 7 45 40 Thermal 29 | 7 22 . Explosive . | . . . Electromagnetic . | . . . Robot Hit Streak 5 | 5 4 4 Robot Miss Streak 4 | 2 4 4 Penetration Max . | . . . Secondary Targets 2 | . 2 . Max Gunslinging Chain 1 | . 1 . Shots Hit Robots 58 | 7 33 18 Core Hits 22 | 3 14 5 Critical Hits . | . . . Critical Kills . | . . . Critical Parts Destroyed . | . . . Melee Attacks . | . . . Impact . | . . . Slashing . | . . . Piercing . | . . . Sneak Attacks . | . . . Combat Hostiles . | . . . Follow-up Attacks . | . . . Damage Inflicted 601 | 82 356 163 Guns 527 | 82 356 89 Cannons 67 | . . 67 Explosions . | . . . Melee . | . . . Ramming 7 | . . 7 Kinetic 377 | 40 181 156 Thermal 217 | 42 175 . Explosive . | . . . Electromagnetic . | . . . Impact . | . . . Slashing . | . . . Piercing . | . . . Highest Corruption . | . . . Average Corruption . | . . . Corruption Purged . | . . . Overload Shots . | . . . Overflow Damage . | . . . Projectiles . | . . . Explosions . | . . . Melee . | . . . Knockbacks 1 | . . 1 Impact . | . . . Kinetic 1 | . . 1 Secondary . | . . . Self-Inflicted Damage 3 | . . 3 Shots . | . . . Rammed 2 | . . 2 Targets Rammed 2 | . . 2 Kicked . | . . . Crushed . | . . . Highest Temperature 91 | 70 91 67 Average Temperature 38 | 35 43 29 Received Heat Transfer 366 | 36 123 207 Siege Activations . | . . . Robots Corrupted . | . . . Combat Hostiles . | . . . Parts Fried . | . . . Impact Corruptions . | . . . Robots Melted . | . . . Combat Hostiles . | . . . Parts Melted . | . . . Heat Transferred 500 | 100 400 . Parts Sabotaged . | . . . Parts Stolen . | . . . Parts Stripped . | . . . Power Chain Reactions . | . . . Missiles Intercepted . | . . . Alert | -11 -10 -10 ------- Run | Scr Mat Min Peak Influence 173 | 25 173 86 Average Influence 58 | 3 65 71 Maximum Alert Level . | . . . Low Security (%) 100 | 100 100 100 Level 1 . | . . . Level 2 . | . . . Level 3 . | . . . Level 4 . | . . . Level 5 . | . . . High Security . | . . . Max Security . | . . . Squads Dispatched . | . . . Investigation . | . . . Extermination . | . . . Reinforcement . | . . . Assault . | . . . Garrison . | . . . Intercept . | . . . Construction Impeded . | . . . Haulers Reinforced . | . . . Stealth | -11 -10 -10 --------- Run | Scr Mat Min Distress Signals 1 | . 1 . Communications Jammed . | . . . Distress Signals . | . . . Times Spotted 21 | 1 11 9 Peak Tracking Total 5 | 1 4 5 Tactical Retreats 3 | . 1 2 Traps | -11 -10 -10 ------- Run | Scr Mat Min Traps Triggered . | . . . Indirectly . | . . . Trap Hack Attempts . | . . . Triggered . | . . . Disarmed . | . . . Reprogrammed . | . . . Reused . | . . . Traps Extracted . | . . . Installed . | . . . Triggered . | . . . Machines | -11 -10 -10 ---------- Run | Scr Mat Min Machines Disabled . | . . . Max in Single Turn . | . . . Machines Sabotaged . | . . . Garrisons Compromised . | . . . Overloaded Fab Kills . | . . . Fab Network Shutdowns . | . . . Hacking | -11 -10 -10 --------- Run | Scr Mat Min Machines Accessed 1 | . . 1 Terminals 1 | . . 1 Fabricators . | . . . Repair Stations . | . . . Recycling Units . | . . . Scanalyzers . | . . . Garrison Access . | . . . Total Hacks 2 | . . 2 Successful 2 | . . 2 Failed . | . . . Catastrophic . | . . . Database Lockouts . | . . . Manual . | . . . Terminals 2 | . . 2 Fabricators . | . . . Repair Stations . | . . . Recycling Units . | . . . Scanalyzers . | . . . Garrison Access . | . . . Terminal Hacks 2 | . . 2 Record 1 | . . 1 Dispatch Records 1 | . . 1 Fabricator Hacks . | . . . Repair Station Hacks . | . . . Recycling Unit Hacks . | . . . Scanalyzer . | . . . Garrison Access Hacks . | . . . Unauthorized Hacks . | . . . Terminals . | . . . Fabricators . | . . . Repair Stations . | . . . Recycling Units . | . . . Scanalyzers . | . . . Garrison Access . | . . . Data Cores Recovered . | . . . Used . | . . . Hacking Detections . | . . . Full Trace Events . | . . . Feedback Events . | . . . Feedback Blocked . | . . . Robot Schematics Acquired . | . . . Robots Built . | . . . Matter . | . . . Time . | . . . Total Robot Build Rating . | . . . Part Schematics Acquired . | . . . Parts Built . | . . . Matter . | . . . Time . | . . . Total Part Build Rating . | . . . Parts Repaired . | . . . Time . | . . . Parts Recycled . | . . . Recycled Matter . | . . . Retrieved Matter . | . . . Retrieved Components . | . . . Parts Scanalyzed . | . . . Part Schematics Acquired . | . . . Parts Damaged . | . . . Bothacking | -11 -10 -10 ------------ Run | Scr Mat Min Used RIF Installer . | . . . Robots Hacked . | . . . Non-combat . | . . . Combat . | . . . Robot Hacks Applied . | . . . Relay Couplers Released . | . . . Robots Rewired . | . . . Allies Hacked . | . . . Hacks Repelled . | . . . Allies | -11 -10 -10 -------- Run | Scr Mat Min Total Allies . | . . . Largest Group . | . . . Highest-Rated Group . | . . . Highest-Rated Ally . | . . . Total Orders . | . . . Ally Attacks . | . . . Total Damage . | . . . Kills . | . . . Allies Corrupted . | . . . Allies Melted . | . . . Intel | -11 -10 -10 ------- Run | Scr Mat Min Robot Analysis Total . | . . . Derelict Logs Recovered . | . . . Drone Launches . | . . . Drone Recoveries . | . . . Exploration | -11 -10 -10 ------------- Run | Scr Mat Min Turns Passed 845 | 128 380 337 Spaces Moved 499 | 92 228 179 Core 29 | 23 . 6 Treads . | . . . Legs 470 | 69 228 173 Wheels . | . . . Hover . | . . . Flight . | . . . Fastest Speed 50 | 50 120 120 Average Speed 120 | 102 120 130 Slowest Speed 250 | 120 120 250 Overloaded Moves . | . . . Propulsion Burnouts . | . . . Robots Hopped . | . . . Cave-ins Triggered . | . . . Exploration Rate (%) 25 | 5 32 38 Regions Visited 2 Branch Regions 1 Pre-discovered Areas . | . . . Known Exits Taken . | . . . Unknown Exits Taken 2 | 1 1 . Scrap Searched 3 | . . 3 Spaces Dug . | . . . Terrain Destroyed . | . . . Melee . | . . . Projectile . | . . . AOE . | . . . Actions | -11 -10 -10 --------- Run | Scr Mat Min Total 640 | 113 279 248 Wait 32 | . . 32 Move 497 | 91 227 179 Hop . | . . . Pick Up 20 | 9 5 6 Fast Attach . | . . . Attach 17 | 6 6 5 Detach 1 | . . 1 Swap . | . . . Drop 7 | . 6 1 Fire 64 | 7 35 22 Melee . | . . . Ram 2 | . . 2 Kick . | . . . Crush . | . . . Escape Stasis . | . . . Rewire . | . . . Trap . | . . . Miscellaneous . | . . . Route ------- -11/Scrapyard -10/Materials -10/Mines History --------- Turn | Location | Event 2 | -11/Scrapyard | Met Revision 17 101 | -11/Scrapyard | Discovered new exit (range 8) 129 | -11/Scrapyard | Entered Materials 201 | -10/Materials | Core integrity fell below 50% 277 | -10/Materials | Discovered new exit (range 7) 313 | -10/Materials | Build established: Mutant 509 | -10/Materials | Entered Mines 677 | -10/Mines | Core integrity fell below 20% 719 | -10/Mines | Lost 4 parts (1p1n2w) 846 | -10/Mines | Destroyed by S-10 Pest with Light Assault Rifle Last Messages --------------- Lgt. Ion Engine destroyed. Aluminum Leg destroyed. G-47 Trooper destroyed. Acquired 46 matter. Acquired Med. Battery. Acquired Hover Unit. Acquired Med. Battery. Acquired 30 matter. Searching scrap... Found 39 Matter. Found Wheel. Found Med. Storage Unit. Acquired 23 matter. Acquired Med. Storage Unit. Dropped Sml. Matter Pod. Extracted 10 matter. Aluminum Leg destroyed. Lgt. Assault Rifle destroyed. Lgt. Cannon destroyed. Slammed into S-10 Pest. Map ----- +----------------------------------------------------+ | ?????????????????????????????????????????????? | | ?????????????????????????????????????????????? | | ?????????????????????????????????????????????? | | ?????????????????????????????????????????????? | | ?????????????????????????????????????????????? | | ?????????????????????????????????????????????? | | ?????????????????????????????????????????????? | | ?????????????????????????????????????????????? | | ?????????????????????????????????????????????? | | ?????????????????????????????????????????????? | | ????????????????????????????????? ?????????? | | ????????????????????????????????? #?????????? | | ????????????????????????????????? ##????????? | | ????????????????????????????????? #?##?????? | | ????????????????????????????????? ??????? | | ???????????????????????????????## ???????? | | ??????????????????????????????## ????????? | | ??????????????????????????????? ?????????? | | ??????????????????##??????????? ??????????? | | ??????????????????? ???????????# #??????????? | | ??????????????????? ??????????# #??????????? | | ???????????????????# ????####### #??????????? | | ??????????????????## ????# #########??? | | ?????????????????## s##??# #??? | | ????????????????## s#### #### ####?# #??? | | ????????????????# @% s #??# #????# #??? | | ???????????????# ######??# ##???# #??? | | ??????????????# ##???????# #???# #??? | | ??????????????# ?????????## ##### #### | | ??????????????## #??????????## | | ???????????????## #????????????## ### ##### | | ????????????????###??????????????# #?# #???? | | ?????????????????????????????????# #?# #???? | | ?????????????????????????????????# #???? | | ?????????????????????????????????# ####???? | | ?????????????????????????????????# ##??????? | | ?????????????????????????????????# ##???????? | | ????????????????????????????????# ##????????? | | ??????????????????????????????? #?????????? | | ?????????????????????????????? ? ??????????? | | ????????????????????????????# ?? ??????????? | | ???????????????????????????? ??? ??????????? | | ???????????????????????????????? ??????????? | | ???????????????????????????????? ??????????? | | ?????????????????????????????????????????????? | | ?????????????????????????????????????????????? | | ?????????????????????????????????????????????? | | ?????????????????????????????????????????????? | | ?????????????????????????????????????????????? | | ?????????????????????????????????????????????? | +----------------------------------------------------+ Best States ------------- Heat Dissipation 25 Energy Generation 10 Energy Capacity 425 Matter Stores 350 Matter Capacity 350 Sight Range 16 Terrain Scan Density 10 Evasion (%) 50 Item Schematics ----------------- None Robot Schematics ------------------ None Fabricated ------------ Nothing Alien Tech Used ----------------- None Achievements -------------- None Challenges ------------ None Game ------ Seed ContainmentIntegratedWand Manual? 0 Play Time 00:14:08 Cumulative 0.9 hours Start 2020.01.25 @ 11:55:44 End 2020.01.25 @ 12:09:16 Sessions 1 Manual Loads 0 Difficulty Rogue Special Mode None Game No. 2 Rogue 1 Adventurer 1 Explorer 0 Win Type - Total 0 Types 0/0/0/0/0/0/0 Lore% 0 Gallery% 1 Achievement% 0 Wizard Run 0 Options --------- ASCII 0 Keyboard 0 Movement Arrows Keybinds 0 Fullscreen 1 Font 18/X11Bold Map View 76x50 Tactical HUD 0 Map Filters NONE Filters NONE Steam 1 RUN: 3952e3df-957d-4a72-ac56-988520913f66